bitfinex/quotes_SOLUSD_20230103
["timestamp","ask_amount","ask_price","bid_price","bid_amount"]
[1672740200487,30.0,11.891,11.883,20.0]
[1672740207741,30.0,11.889,11.883,20.0]
[1672740210787,30.0,11.889,11.882,24.2712]
[1672740211003,30.0,11.887,11.879,63.23]
[1672740211319,30.0,11.887,11.875,12.65987586]
[1672740211529,24.9456,11.886,11.876,63.25]
[1672740212281,30.0,11.885,11.876,63.25]
[1672740212474,30.0,11.885,11.875,12.65987586]
[1672740212684,54.8053,11.885,11.876,12.65987586]
[1672740213327,54.8053,11.885,11.874,63.26]
[1672740213534,172.5079,11.885,11.875,20.0]
[1672740218905,172.5079,11.885,11.875,32.65987586]
[1672740219116,172.5079,11.885,11.875,20.0]
[1672740225209,30.0,11.883,11.875,20.0]
[1672740226053,30.0,11.883,11.875,32.65987586]
[1672740226586,22.9132,11.884,11.875,32.65987586]
[1672740226793,22.9132,11.884,11.876,30.0]
[1672740227328,22.9132,11.884,11.877,12.65987586]
[1672740230459,22.9132,11.884,11.878,30.0]
[1672740230688,22.9132,11.884,11.877,12.65987586]
[1672740230875,22.9132,11.884,11.878,12.65987586]
[1672740232058,22.9132,11.884,11.875,83.26]
[1672740232251,22.9132,11.884,11.875,95.91987586]
[1672740234575,22.9132,11.884,11.876,30.0]
[1672740234762,22.9132,11.884,11.875,95.91987586]
[1672740237854,22.9132,11.884,11.876,30.0]
[1672740238161,22.9132,11.884,11.877,12.65987586]
[1672740248472,22.9132,11.884,11.875,20.0]
[1672740248668,22.9132,11.884,11.875,95.91987586]
[1672740254359,52.9132,11.884,11.875,95.91987586]
[1672740254567,52.9132,11.884,11.875,83.26]
[1672740255195,52.9132,11.884,11.876,12.65987586]
[1672740255605,52.9132,11.884,11.875,83.26]
[1672740256139,52.9132,11.884,11.876,12.65987586]
[1672740256983,52.9132,11.884,11.875,83.26]
[1672740257503,52.9132,11.884,11.875,95.91987586]
[1672740257710,52.9132,11.884,11.875,83.26]
[1672740261715,52.9132,11.884,11.876,12.65987586]
[1672740263914,52.9132,11.884,11.875,20.0]
[1672740264125,30.0,11.883,11.875,20.0]
[1672740272141,30.0,11.883,11.875,32.65987586]
[1672740273575,30.0,11.883,11.875,20.0]
[1672740273791,30.0,11.883,11.875,348.21947338]
[1672740273792,63.22,11.882,11.875,348.21947338]
[1672740274011,30.0,11.881,11.875,348.21947338]
[1672740281565,23.6981,11.883,11.876,12.65987586]
[1672740287587,23.6981,11.883,11.875,348.21947338]
[1672740312596,23.6981,11.883,11.875,360.87934924]
[1672740314483,23.6981,11.883,11.875,32.65987586]
[1672740315552,23.6981,11.883,11.875,20.0]
[1672740315763,23.6981,11.883,11.875,32.65987586]
[1672740320182,23.6981,11.883,11.876,30.0]
[1672740320719,23.6981,11.883,11.875,62.65987586]
[1672740321458,23.6981,11.883,11.875,32.65987586]
[1672740321984,63.18,11.889,11.875,32.65987586]
[1672740322199,12.89,11.89,11.876,54.3389]
[1672740322596,30.0,11.889,11.876,54.3389]
[1672740322914,93.18,11.889,11.876,54.3389]
[1672740323138,131.7578,11.888,11.876,54.3389]
[1672740323337,30.0,11.887,11.876,54.3389]
[1672740323548,161.7578,11.887,11.876,54.3389]
[1672740325135,131.7578,11.887,11.876,66.99877586]
[1672740325453,131.7578,11.887,11.877,30.0]
[1672740325656,131.7578,11.887,11.878,20.54]
[1672740330271,108.0107,11.887,11.879,12.65987586]
[1672740330481,108.0107,11.887,11.881,30.0]
[1672740330807,30.0,11.892,11.881,30.0]
[1672740330808,93.17,11.892,11.882,20.0]
[1672740331004,93.17,11.892,11.882,44.7965]
[1672740331329,63.17,11.892,11.882,44.7965]
[1672740331652,134.4638,11.893,11.882,119.65637586]
[1672740332286,30.0,11.892,11.882,119.65637586]
[1672740336803,30.0,11.892,11.882,106.9965]
[1672740339432,30.0,11.892,11.882,119.65637586]
[1672740340391,30.0,11.892,11.882,106.9965]
[1672740340585,30.0,11.892,11.882,44.7965]
[1672740340902,30.0,11.892,11.882,77.1965]
[1672740342277,30.0,11.889,11.879,28.1]
[1672740342490,93.18,11.889,11.872,193.0271]
[1672740342803,30.0,11.887,11.873,20.0]
[1672740343006,46.6778,11.886,11.874,73.8965]
[1672740343331,46.6778,11.886,11.874,86.55637586]
[1672740343646,52.5134,11.885,11.875,23.0399]
[1672740343833,30.0,11.887,11.876,31.13]
[1672740344049,30.0,11.889,11.877,30.0]
[1672740344379,30.0,11.889,11.878,33.43]
[1672740344590,30.0,11.889,11.879,20.0]
[1672740344786,30.0,11.889,11.88,33.43]
[1672740345000,30.0,11.889,11.881,20.0]
[1672740357824,12.89,11.89,11.881,32.65987586]
[1672740358164,93.17,11.892,11.881,32.65987586]
[1672740358347,93.17,11.892,11.881,57.19767586]
[1672740359837,117.0761,11.892,11.881,57.19767586]
[1672740360770,117.0761,11.892,11.881,108.88767586]
[1672740366034,117.0761,11.892,11.881,96.2278]
[1672740366245,117.0761,11.892,11.881,44.5378]
[1672740367955,12.84,11.89,11.88,44.17]
[1672740368137,30.0,11.888,11.876,43.94]
[1672740368346,30.0,11.888,11.873,87.2657]
[1672740368570,30.0,11.886,11.874,20.0]
[1672740368777,30.0,11.886,11.873,87.2657]
[1672740368778,22.7135,11.885,11.875,61.433]
[1672740370141,22.7135,11.885,11.876,20.0]
[1672740370368,22.7135,11.885,11.875,61.433]
[1672740371083,22.7135,11.885,11.876,12.65987586]
[1672740372671,22.7135,11.885,11.877,36.37]
[1672740372883,22.7135,11.885,11.876,38.44]
[1672740379633,22.7135,11.885,11.876,37.44]
[1672740379946,52.7135,11.885,11.876,37.44]
[1672740380559,22.7135,11.885,11.876,37.44]
[1672740381420,52.7135,11.885,11.876,37.44]
[1672740382033,63.16,11.893,11.877,12.65987586]
[1672740382244,24.3719,11.892,11.878,125.0773]
[1672740382461,54.3719,11.892,11.878,180.78297549]
[1672740382778,54.3719,11.892,11.879,32.65987586]
[1672740382981,54.3719,11.892,11.88,49.18]
[1672740383196,30.0,11.891,11.881,43.5588]
[1672740383397,30.0,11.891,11.882,49.56]
[1672740383608,30.0,11.891,11.883,20.0]
[1672740409786,30.0,11.891,11.883,54.96]
[1672740410746,30.0,11.891,11.883,20.0]
[1672740423762,54.3719,11.892,11.883,20.0]
[1672740424304,24.3719,11.892,11.883,20.0]
[1672740424616,24.3719,11.892,11.883,32.65987586]
[1672740426510,54.3719,11.892,11.883,32.65987586]
[1672740431026,24.3719,11.892,11.883,32.65987586]
[1672740432056,54.3719,11.892,11.883,32.65987586]
[1672740439856,24.3719,11.892,11.883,32.65987586]
[1672740440257,54.3719,11.892,11.883,32.65987586]
[1672740446784,30.0,11.891,11.883,20.0]
[1672740450997,63.18,11.89,11.883,20.0]
[1672740451213,30.0,11.889,11.883,20.0]
[1672740453089,30.0,11.889,11.881,59.115]
[1672740453090,30.0,11.889,11.881,34.55]
[1672740460670,30.0,11.887,11.881,34.55]
[1672740470133,93.19,11.887,11.881,34.55]
[1672740470757,30.0,11.887,11.881,34.55]
[1672740471069,30.0,11.887,11.875,23.556]
[1672740471260,23.393,11.886,11.876,20.0]
[1672740471590,30.0,11.885,11.876,20.0]
[1672740473261,30.0,11.885,11.877,2.982]
[1672740476737,142.3002,11.886,11.877,2.982]
[1672740476956,142.3002,11.886,11.877,15.64187586]
[1672740479684,30.0,11.885,11.877,15.64187586]
[1672740481476,30.0,11.885,11.877,2.982]
[1672740484534,30.0,11.885,11.876,44.1583]
[1672740488200,142.3002,11.886,11.876,44.1583]
[1672740489545,30.0,11.885,11.876,44.1583]
[1672740492720,142.3002,11.886,11.877,12.65987586]
[1672740493239,142.3002,11.886,11.876,44.1583]
[1672740493777,30.0,11.885,11.876,44.1583]
[1672740510832,93.2,11.885,11.876,44.1583]
[1672740511230,30.0,11.885,11.876,44.1583]
[1672740513663,30.0,11.883,11.876,44.1583]
[1672740515752,83.22,11.882,11.876,24.1583]
[1672740515968,83.22,11.882,11.874,22.5813]
[1672740515969,30.0,11.881,11.866,22.9179]
[1672740516180,76.13,11.88,11.866,22.9179]
[1672740516514,30.0,11.878,11.863,30.0]
[1672740516697,117.7987,11.877,11.863,30.0]
[1672740517433,165.3891,11.876,11.863,30.0]
[1672740518082,170.6741,11.875,11.864,20.0]
[1672740519023,170.6741,11.875,11.865,34.6]
[1672740519210,233.9341,11.875,11.865,34.6]
[1672740519424,170.6741,11.875,11.865,34.6]
[1672740519634,233.9341,11.875,11.866,20.0]
[1672740520066,203.9341,11.875,11.866,20.0]
[1672740520297,140.6741,11.875,11.866,20.0]
[1672740520479,30.0,11.874,11.866,20.0]
[1672740531415,203.9341,11.875,11.866,20.0]
[1672740531639,140.6741,11.875,11.866,20.0]
[1672740532885,139.6741,11.875,11.866,20.0]
[1672740534380,30.0,11.874,11.866,20.0]
[1672740541647,93.26,11.874,11.866,20.0]
[1672740543112,232.9341,11.875,11.866,20.0]
[1672740543727,30.0,11.874,11.866,20.0]
[1672740552581,63.27,11.873,11.866,20.0]
[1672740552776,30.0,11.872,11.866,20.0]
[1672740566437,63.28,11.871,11.866,20.0]
[1672740566657,30.0,11.87,11.866,20.0]
[1672740569083,30.0,11.87,11.865,34.6]
[1672740573697,30.0,11.87,11.858,23.52]
[1672740573916,30.0,11.868,11.858,23.52]
[1672740574433,53.4577,11.868,11.858,23.52]
[1672740576434,53.4577,11.868,11.857,30.62]
[1672740576759,23.4577,11.867,11.857,43.27987586]
[1672740582436,23.4577,11.867,11.857,30.62]
[1672740582963,23.4577,11.867,11.857,43.27987586]
[1672740585161,23.4577,11.867,11.857,30.62]
[1672740586530,23.4577,11.867,11.857,43.27987586]
[1672740592012,23.4577,11.867,11.857,30.62]
[1672740597362,30.0,11.866,11.857,30.62]
[1672740608603,93.31,11.866,11.857,30.62]
[1672740621973,30.0,11.864,11.848,17.21]
[1672740622285,12.94,11.86,11.848,17.21]
[1672740622481,23.9808,11.859,11.847,16.31]
[1672740622697,30.0,11.858,11.847,16.31]
[1672740623330,173.1788,11.858,11.847,16.31]
[1672740623539,30.0,11.856,11.846,42.771]
[1672740624371,54.5848,11.856,11.846,42.771]
[1672740626810,54.5848,11.856,11.847,12.65987586]
[1672740627217,54.5848,11.856,11.846,42.771]
[1672740627422,24.5848,11.856,11.846,42.771]
[1672740627636,24.5848,11.856,11.847,42.65987586]
[1672740627850,24.5848,11.856,11.847,12.65987586]
[1672740628257,117.9448,11.856,11.846,24.911]
[1672740628683,30.0,11.855,11.846,24.911]
[1672740628892,30.0,11.853,11.846,24.911]
[1672740629630,63.37,11.854,11.846,24.911]
[1672740629947,225.4617,11.855,11.846,24.911]
[1672740631845,132.0917,11.855,11.846,24.911]
[1672740632065,132.0917,11.855,11.846,43.921]
[1672740633748,132.0917,11.855,11.847,11.51956902]
[1672740637010,132.0917,11.855,11.848,30.0]
[1672740637629,132.0917,11.855,11.848,11.50733485]
[1672740638881,132.0917,11.855,11.848,35.65733485]
[1672740639534,132.0917,11.855,11.849,30.0]
[1672740639937,132.0917,11.855,11.849,42.65987586]
[1672740640468,132.0917,11.855,11.849,12.65987586]
[1672740640995,132.0917,11.855,11.848,35.65733485]
[1672740651624,132.0917,11.855,11.848,100.37664331]
[1672740651836,132.0917,11.855,11.848,87.71676745]
[1672740654464,132.0917,11.855,11.848,35.65733485]
[1672740664133,30.0,11.854,11.848,35.65733485]
[1672740665598,93.37,11.854,11.848,35.65733485]
[1672740666129,63.37,11.854,11.848,35.65733485]
[1672740666659,132.0917,11.855,11.848,35.65733485]
[1672740667914,30.0,11.854,11.848,35.65733485]
[1672740674850,132.0917,11.855,11.848,35.65733485]
[1672740675253,30.0,11.854,11.848,35.65733485]
[1672740678942,30.0,11.854,11.848,11.50733485]
[1672740679689,30.0,11.854,11.846,24.911]
[1672740680615,30.0,11.854,11.847,11.51956902]
[1672740684098,30.0,11.854,11.847,10.51956902]
[1672740687372,132.0917,11.855,11.847,10.51956902]
[1672740688446,30.0,11.854,11.847,10.51956902]
[1672740688729,30.0,11.854,11.847,9.51956902]
[1672740689363,132.0917,11.855,11.847,9.51956902]
[1672740689556,30.0,11.854,11.847,9.51956902]
[1672740694822,132.0917,11.855,11.847,9.51956902]
[1672740695036,30.0,11.854,11.847,9.01956902]
[1672740695661,93.37,11.854,11.847,9.01956902]
[1672740697329,30.0,11.854,11.847,9.01956902]
[1672740698819,30.0,11.854,11.847,8.51956902]
[1672740699647,30.0,11.854,11.846,24.911]
[1672740700070,132.0917,11.855,11.846,24.911]
[1672740700388,132.0917,11.855,11.846,76.9704326]
[1672740700919,132.0917,11.855,11.846,91.01018916]
[1672740702497,132.0917,11.855,11.846,90.51018916]
[1672740703760,132.0917,11.855,11.847,12.65987586]
[1672740703963,132.0917,11.855,11.846,90.51018916]
[1672740706257,132.0917,11.855,11.846,90.01018916]
[1672740715527,132.0917,11.855,11.846,37.95075656]
[1672740721504,132.0917,11.855,11.846,37.45075656]
[1672740722046,132.0917,11.855,11.847,20.0]
[1672740722262,63.33,11.862,11.847,124.13787419]
[1672740722582,30.0,11.864,11.849,30.0]
[1672740722779,30.0,11.862,11.849,30.0]
[1672740722979,30.0,11.862,11.85,134.46294092]
[1672740726663,30.0,11.862,11.85,157.92874092]
[1672740732353,12.87,11.86,11.85,43.4658]
[1672740732564,30.0,11.859,11.844,23.0545]
[1672740732778,117.2492,11.859,11.845,20.0]
[1672740732990,117.2492,11.859,11.844,126.90489901]
[1672740733199,117.2492,11.859,11.844,139.56477487]
[1672740733510,30.0,11.857,11.845,24.6652]
[1672740733728,93.35,11.857,11.845,38.72025444]
[1672740733913,30.0,11.855,11.845,38.72025444]
[1672740734462,30.0,11.855,11.846,20.0]
[1672740734656,54.6012,11.855,11.846,20.0]
[1672740737811,54.6012,11.855,11.846,34.03975656]
[1672740738241,54.6012,11.855,11.847,12.65987586]
[1672740739696,54.6012,11.855,11.846,20.0]
[1672740740664,54.6012,11.855,11.846,38.71967542]
[1672740750237,54.6012,11.855,11.846,38.21967542]
[1672740752953,30.0,11.853,11.846,38.21967542]
[1672740754132,63.37,11.854,11.846,38.21967542]
[1672740754956,117.9712,11.855,11.846,38.21967542]
[1672740801849,117.9712,11.855,11.846,33.53975656]
[1672740815419,54.6012,11.855,11.846,33.53975656]
[1672740823841,30.0,11.853,11.846,33.53975656]
[1672740826886,30.0,11.853,11.846,38.21967542]
[1672740827838,30.0,11.853,11.846,33.53975656]
[1672740842981,30.0,11.853,11.846,19.5]
[1672740847487,30.0,11.853,11.83,13.02]
[1672740847699,30.0,11.848,11.836,137.6449]
[1672740847910,30.0,11.848,11.837,48.8705]
[1672740848968,30.0,11.848,11.838,11.31776953]
[1672740849186,164.8815,11.848,11.838,11.31776953]
[1672740849793,164.8815,11.848,11.839,2.476]
[1672740853068,164.8815,11.848,11.84,11.29326605]
[1672740854855,228.2815,11.848,11.84,11.29326605]
[1672740856848,228.2815,11.848,11.838,24.6402]
[1672740857987,228.2815,11.848,11.839,11.30551676]
[1672740859779,30.0,11.846,11.839,11.30551676]
[1672740860004,63.42,11.845,11.839,11.30551676]
[1672740860214,30.0,11.844,11.839,11.30551676]
[1672740860524,30.0,11.844,11.839,0.00551676]
[1672740860525,30.0,11.842,11.839,0.00551676]
[1672740860741,30.0,11.842,11.839,11.30551676]
[1672740860742,63.44,11.841,11.839,11.30551676]
[1672740860932,30.0,11.84,11.839,11.30551676]
[1672740861145,30.0,11.84,11.839,0.00551676]
[1672740861361,187.3399,11.84,11.839,0.00551676]
[1672740862001,187.3399,11.84,11.829,46.8742]
[1672740862212,200.2399,11.84,11.83,1.27414342]
[1672740862421,200.2399,11.84,11.83,1.27403572]
[1672740863564,200.3499,11.84,11.83,1.27403572]
[1672740864819,30.0,11.838,11.83,1.27403572]
[1672740877572,196.7915,11.839,11.83,1.27403572]
[1672740877876,30.0,11.848,11.83,31.27403572]
[1672740878092,137.8976,11.847,11.832,30.0]
[1672740878280,137.8976,11.847,11.833,21.27382036]
[1672740878491,137.8976,11.847,11.834,1.27371271]
[1672740878492,30.0,11.846,11.834,1.27371271]
[1672740878701,93.41,11.846,11.834,1.27360508]
[1672740879053,117.2031,11.846,11.834,25.56190508]
[1672740879440,129.86297586,11.846,11.834,1.27360508]
[1672740879668,179.4273,11.845,11.828,24.2883]
[1672740879879,30.0,11.843,11.828,25.56265888]
[1672740880197,30.0,11.841,11.829,1.27425114]
[1672740880393,199.2805,11.84,11.829,1.27414342]
[1672740880594,30.0,11.839,11.829,1.27414342]
[1672740880814,164.6594,11.839,11.829,1.27414342]
[1672740882840,134.6594,11.839,11.829,1.27414342]
[1672740883044,63.43,11.842,11.83,28.96987586]
[1672740883248,63.43,11.842,11.831,45.79773572]
[1672740883457,63.43,11.842,11.832,1.27392803]
[1672740883775,63.43,11.842,11.832,1.27382036]
[1672740884946,30.0,11.841,11.832,1.27382036]
[1672740887355,30.0,11.839,11.832,1.27382036]
[1672740889347,63.46,11.838,11.831,1.27382036]
[1672740889541,30.0,11.837,11.831,1.27382036]
[1672740890495,30.0,11.835,11.831,1.27382036]
[1672740891346,30.0,11.833,11.829,1.27392803]
[1672740894723,63.49,11.832,11.829,1.27392803]
[1672740894911,30.0,11.831,11.829,1.27392803]
[1672740895123,30.0,11.831,11.828,16.31]
[1672740899973,30.0,11.833,11.828,16.31]
[1672740900292,63.48,11.834,11.829,1.27425114]
[1672740900499,93.47,11.835,11.829,1.27414342]
[1672740902590,30.0,11.835,11.829,1.27414342]
[1672740903550,134.5603,11.836,11.829,1.27414342]
[1672740904074,30.0,11.835,11.829,1.27414342]
[1672740904595,134.5603,11.836,11.829,1.27414342]
[1672740905649,111.9594,11.836,11.829,31.27414342]
[1672740905870,111.9594,11.836,11.83,12.97]
[1672740906064,111.9594,11.836,11.831,21.27403572]
[1672740906259,63.43,11.842,11.832,1.27392803]
[1672740906469,63.43,11.842,11.832,1.27382036]
[1672740906905,93.43,11.843,11.832,1.27382036]
[1672740907121,30.0,11.843,11.832,1.27382036]
[1672740908062,30.0,11.841,11.832,1.27382036]
[1672740910908,93.43,11.843,11.832,1.27382036]
[1672740911119,93.43,11.843,11.832,31.27382036]
[1672740911642,93.43,11.843,11.833,20.0]
[1672740911853,93.43,11.843,11.834,1.27371271]
[1672740912047,93.43,11.843,11.834,1.27360508]
[1672740912594,23.0443,11.845,11.834,1.27360508]
[1672740912787,134.2201,11.845,11.834,31.27360508]
[1672740912999,134.2201,11.845,11.835,20.0]
[1672740914799,134.2201,11.845,11.835,32.65987586]
[1672740915001,134.2201,11.845,11.836,30.0]
[1672740919302,134.2201,11.845,11.836,87.48532736]
[1672740920871,134.2201,11.845,11.84,12.92]
[1672740921089,23.3381,11.85,11.84,12.92]
[1672740921090,30.0,11.854,11.841,20.0]
[1672740921424,63.38,11.853,11.841,66.9372]
[1672740921944,30.0,11.852,11.841,66.9372]
[1672740922783,63.38,11.853,11.841,66.9372]
[1672740923854,30.0,11.852,11.841,66.9372]
[1672740929853,24.0999,11.853,11.841,66.9372]
[1672740930043,24.0999,11.853,11.842,30.0]
[1672740930252,24.0999,11.853,11.843,20.0]
[1672740936248,30.0,11.852,11.843,20.0]
[1672740941207,142.2241,11.853,11.843,20.0]
[1672740941708,142.2241,11.853,11.843,90.14520322]
[1672740942568,142.2241,11.853,11.844,30.0]
[1672740942774,142.2241,11.853,11.845,20.0]
[1672740943619,142.2241,11.853,11.844,20.0]
[1672740950995,30.0,11.852,11.844,20.0]
[1672740967601,142.2241,11.853,11.844,20.0]
[1672740968018,30.0,11.852,11.844,20.0]
[1672740984754,142.2241,11.853,11.844,20.0]
[1672740985151,30.0,11.852,11.844,20.0]
[1672741002100,142.2241,11.853,11.844,20.0]
[1672741002927,142.2241,11.853,11.844,77.48532736]
[1672741003332,142.2241,11.853,11.845,12.65987586]
[1672741003561,142.2241,11.853,11.846,20.0]
[1672741003962,30.0,11.852,11.846,20.0]
[1672741004172,30.0,11.852,11.845,20.0]
[1672741004507,142.2241,11.853,11.845,20.0]
[1672741004716,142.2241,11.853,11.844,20.0]
[1672741004935,30.0,11.852,11.844,20.0]
[1672741006280,30.0,11.852,11.844,77.48532736]
[1672741007326,142.2241,11.853,11.844,77.48532736]
[1672741009131,30.0,11.852,11.844,77.48532736]
[1672741026180,142.2241,11.853,11.844,77.48532736]
[1672741029326,142.2241,11.853,11.845,12.65987586]
[1672741029534,142.2241,11.853,11.846,20.0]
[1672741030697,142.2241,11.853,11.845,20.0]
[1672741033643,30.0,11.852,11.845,32.65987586]
[1672741034063,30.0,11.852,11.845,20.0]
[1672741037848,30.0,11.852,11.846,190.94384298]
[1672741038060,30.0,11.852,11.845,20.0]
[1672741038669,172.2241,11.853,11.845,20.0]
[1672741038670,142.2241,11.853,11.845,32.65987586]
[1672741038884,142.2241,11.853,11.845,20.0]
[1672741039835,30.0,11.852,11.845,20.0]
[1672741048897,142.2241,11.853,11.845,20.0]
[1672741050059,30.0,11.852,11.845,20.0]
[1672741058676,142.2241,11.853,11.845,20.0]
[1672741070768,30.0,11.852,11.845,20.0]
[1672741075282,142.2241,11.853,11.845,20.0]
[1672741078952,142.2241,11.853,11.845,90.14520322]
[1672741079281,142.2241,11.853,11.846,30.0]
[1672741081161,142.2241,11.853,11.846,87.48532736]
[1672741082537,142.2241,11.853,11.846,57.48532736]
[1672741083277,142.2241,11.853,11.847,30.0]
[1672741083994,142.2241,11.853,11.847,100.14520322]
[1672741084201,63.33,11.862,11.848,20.0]
[1672741084428,115.47,11.858,11.85,12.97]
[1672741084628,110.9771,11.863,11.851,42.8428]
[1672741084629,30.0,11.862,11.851,42.8428]
[1672741084851,30.0,11.862,11.851,100.32812736]
[1672741084852,63.33,11.861,11.851,100.32812736]
[1672741085059,63.33,11.861,11.852,57.48532736]
[1672741085354,234.7417,11.862,11.853,20.0]
[1672741091484,171.4117,11.862,11.853,20.0]
[1672741091797,141.4117,11.862,11.853,20.0]
[1672741092223,141.4117,11.862,11.853,77.48532736]
[1672741093154,141.4117,11.862,11.853,20.0]
[1672741097774,63.33,11.861,11.853,20.0]
[1672741098111,30.0,11.859,11.853,20.0]
[1672741098415,30.0,11.857,11.853,20.0]
[1672741098628,30.0,11.857,11.833,328.5999292]
[1672741098830,30.0,11.855,11.843,24.4776]
[1672741099152,30.0,11.855,11.844,20.0]
[1672741099365,23.1218,11.854,11.844,20.0]
[1672741100102,23.1218,11.854,11.844,12.65987586]
[1672741101027,23.1218,11.854,11.844,28.94987586]
[1672741101576,23.1218,11.854,11.845,20.0]
[1672741103776,23.1218,11.854,11.845,32.65987586]
[1672741105882,23.1218,11.854,11.846,30.0]
[1672741106296,23.1218,11.854,11.846,42.65987586]
[1672741107035,23.1218,11.854,11.846,91.55524586]
[1672741107967,23.1218,11.854,11.846,48.89537]
[1672741109350,23.1218,11.854,11.845,69.8066607]
[1672741109557,30.0,11.853,11.847,49.8066607]
[1672741109749,30.0,11.853,11.845,20.0]
[1672741109965,30.0,11.853,11.844,20.0]
[1672741110298,53.0099,11.853,11.844,20.0]
[1672741112402,23.0099,11.853,11.844,20.0]
[1672741129441,53.0099,11.853,11.844,20.0]
[1672741131019,23.0099,11.853,11.844,20.0]
[1672741135207,63.35,11.858,11.845,30.0]
[1672741135417,30.0,11.861,11.845,48.2933]
[1672741135749,30.0,11.859,11.846,182.658]
[1672741136147,30.0,11.859,11.847,23.5606]
[1672741136361,30.0,11.859,11.848,20.0]
[1672741136572,30.0,11.859,11.848,43.5606]
[1672741137219,30.0,11.859,11.846,116.2835]
[1672741137434,30.0,11.857,11.846,116.2835]
[1672741137959,30.0,11.857,11.845,12.65987586]
[1672741138172,23.1591,11.856,11.845,12.65987586]
[1672741138900,30.0,11.855,11.843,16.29]
[1672741139116,168.4014,11.855,11.844,20.0]
[1672741139514,168.4014,11.855,11.844,32.65987586]
[1672741139936,168.4014,11.855,11.844,20.0]
[1672741141112,168.4014,11.855,11.844,32.65987586]
[1672741158782,138.4014,11.855,11.844,32.65987586]
[1672741158996,138.4014,11.855,11.845,30.0]
[1672741159308,138.4014,11.855,11.846,20.0]
[1672741164566,138.4014,11.855,11.846,32.65987586]
[1672741180559,138.4014,11.855,11.847,30.0]
[1672741180967,138.4014,11.855,11.848,12.65987586]
[1672741181712,63.34,11.859,11.848,12.65987586]
[1672741181920,87.8104,11.86,11.849,20.0]
[1672741182122,87.8104,11.86,11.849,42.8645]
[1672741182333,87.8104,11.86,11.849,55.52437586]
[1672741184865,30.0,11.859,11.849,55.52437586]
[1672741185498,87.8104,11.86,11.849,55.52437586]
[1672741185917,30.0,11.859,11.849,55.52437586]
[1672741191697,30.0,11.859,11.849,105.33103656]
[1672741196430,24.4704,11.86,11.849,105.33103656]
[1672741196739,30.0,11.859,11.849,105.33103656]
[1672741198932,24.4704,11.86,11.849,105.33103656]
[1672741201155,24.4704,11.86,11.849,92.6711607]
[1672741203479,24.4704,11.86,11.85,14.42]
[1672741203691,24.4704,11.86,11.851,20.0]
[1672741203887,30.0,11.859,11.851,20.0]
[1672741204743,30.0,11.859,11.851,19.88909278]
[1672741205270,30.0,11.859,11.852,48.89537]
[1672741205459,87.8104,11.86,11.85,22.9388]
[1672741205889,24.4704,11.86,11.85,22.9388]
[1672741206206,24.4704,11.86,11.851,20.0]
[1672741206420,30.0,11.859,11.851,20.0]
[1672741209054,54.4704,11.86,11.851,20.0]
[1672741213373,30.0,11.859,11.851,20.0]
[1672741216843,24.4704,11.86,11.851,20.0]